fUSD/lending_fUSD_20251019
["ID","MTS","AMOUNT","RATE_DAILY","PERIOD"]
[391833243,1760896232339,-191.8674925,0.00014899,2]
[391833244,1760896232349,-195.0,0.0001544,2]
[391833245,1760896232359,-407.78,0.00015982,2]
[391833246,1760896232369,-230.60756444,0.00016287,2]
[391833247,1760896232378,-159.34936455,0.00016374,2]
[391833248,1760896232388,-1200.0,0.00016387,2]
[391833249,1760896232398,-300.0,0.00016387,2]
[391833250,1760896232408,-249.0,0.00016387,2]
[391833251,1760896232417,-1200.0,0.00016387,2]
[391833252,1760896232427,-300.0,0.00016387,2]
[391833253,1760896232436,-300.0,0.00016387,2]
[391833254,1760896232446,-191.8674925,0.00016387,2]
[391833255,1760896232454,-280.30746584,0.00016389,2]
[391833256,1760896232464,-250.0,0.00016389,2]
[391833257,1760896232473,-195.0,0.00016389,2]
[391833258,1760896232483,-2500.0,0.00016389,2]
[391833259,1760896232494,-500.0,0.000164,2]
[391833260,1760896232504,-500.0,0.000164,2]
[391833261,1760896232513,-555.55593625,0.000164,2]
[391833262,1760896232522,-502.68204026,0.000164,2]
[391833263,1760896232531,-500.0,0.000164,2]
[391833264,1760896232541,-500.0,0.000164,2]
[391833265,1760896232551,-188.9099331,0.000164,2]
[391833266,1760896232560,-649.17583818,0.000164,2]
[391833267,1760896232570,-500.0,0.000164,2]
[391833268,1760896232579,-407.78,0.00016823,2]
[391833269,1760896232589,-1000.0,0.00016948,2]
[391833271,1760896232599,-1500.0,0.00017496,2]
[391833273,1760896232608,-407.78,0.00017664,2]
[391833274,1760896232618,-420.0,0.00017909,2]
[391833277,1760896232628,-420.0,0.00017909,2]
[391833279,1760896232637,-1275.67306951,0.00018044,2]
[391833281,1760896232646,-407.78,0.00018505,2]
[391833282,1760896232656,-407.78,0.00019346,2]
[391833284,1760896232665,-587.0,0.00019573,2]
[391833286,1760896232675,-231.27,0.00020187,2]
[391833288,1760896232685,-407.78,0.00020188,2]
[391833289,1760896232695,-407.78,0.00021029,2]
[391833291,1760896232704,-823.0,0.00021392,2]
[391833292,1760896232713,-407.78,0.0002187,2]
[391833293,1760896232722,-407.78,0.00022711,2]
[391833294,1760896232732,-150.0,0.00023551,2]
[391833295,1760896232741,-407.78,0.00023552,2]
[391833296,1760896232750,-407.78,0.00024393,2]
[391833298,1760896232759,-500.0,0.00024799,2]
[391833300,1760896232768,-500.0,0.00024799,2]
[391833302,1760896232777,-439.92837644,0.00024799,2]
[391833304,1760896232786,-407.78,0.00025235,2]
[391833306,1760896232796,-392.44219279,0.00026076,2]
[391833307,1760896232826,-15.33780721,0.00026076,2]
[391833308,1760896232835,-231.27,0.00026676,2]
[391833309,1760896232845,-407.78,0.00026917,2]
[391833310,1760896232855,-407.78,0.00027758,2]
[391833311,1760896232864,-407.78,0.00028599,2]
[391833312,1760896232873,-5513.0,0.000288,3]
[391833313,1760896232884,-159.7,0.00029071,2]
[391833314,1760896232894,-250.0,0.00029357,2]
[391833315,1760896232904,-1468.02,0.00029371,2]
[391833316,1760896232914,-373.80082037,0.00029399,2]
[391833317,1760896232926,-500.0,0.00029399,2]
[391833318,1760896232935,-161.92522945,0.00029399,2]
[391833319,1760896232946,-500.0,0.00029399,2]
[391833320,1760896232957,-500.0,0.00029399,2]
[391833321,1760896232967,-500.0,0.00029399,2]
[391833322,1760896232976,-500.0,0.00029399,2]
[391833323,1760896232987,-500.0,0.00029399,2]
[391833324,1760896232997,-500.0,0.00029399,2]
[391833325,1760896233007,-500.0,0.00029399,2]
[391833326,1760896233016,-500.0,0.00029399,2]
[391833327,1760896233025,-500.0,0.00029399,2]
[391833328,1760896233034,-500.0,0.00029399,2]
[391833329,1760896233044,-500.0,0.00029399,2]
[391833330,1760896233053,-500.0,0.00029399,2]
[391833331,1760896233062,-500.0,0.00029399,2]
[391833332,1760896233072,-223.35017872,0.00029399,2]
[391833333,1760896233081,-500.0,0.00029399,2]
[391833334,1760896233093,-500.0,0.00029399,2]
[391833335,1760896233102,-500.0,0.00029399,2]
[391833336,1760896233111,-500.0,0.00029399,2]
[391833337,1760896233121,-500.0,0.00029399,2]
[391833338,1760896233131,-500.0,0.00029399,2]
[391833339,1760896233141,-5513.0,0.000294,5]
[391833340,1760896233150,-407.78,0.0002944,2]
[391833341,1760896233159,-3212.74,0.00029471,120]
[391833342,1760896233171,-666.0,0.00030044,3]
[391833343,1760896233180,-262.52,0.00030064,120]
[391833344,1760896233190,-407.78,0.00030281,2]
[391833345,1760896233199,-456.5769478,0.00030632,2]
[391833346,1760896233209,-3043.102544,0.00030632,2]
[391833347,1760896233218,-200.0,0.00030632,2]
[391833348,1760896233227,-200.0,0.00030632,2]
[391833349,1760896233236,-407.78,0.00031123,2]
[391833350,1760896233246,-1408.0,0.000314,2]
[391833351,1760896233255,-857.73108282,0.00031641,2]
[391833352,1760896233264,-200.0,0.00031775,2]
[391833353,1760896233273,-857.73108283,0.00031948,2]
[391833354,1760896233284,-407.78,0.00031964,2]
[391833355,1760896233294,-1000.0,0.00031977,2]
[391833356,1760896233303,-500.0,0.00032074,8]
[391833357,1760896233313,-192.72802182,0.00032074,8]
[391833358,1760896233322,-1811.861,0.00032074,31]
[391833359,1760896233332,-185.141,0.00032074,31]
[391833360,1760896233342,-1847.0,0.00032118,7]
[391833361,1760896233351,-1197.41,0.00032191,2]
[391833362,1760896233362,-151.0,0.00032214,2]
[391833363,1760896233371,-151.0,0.00032214,2]
[391833364,1760896233380,-151.0,0.00032214,2]
[391833365,1760896233389,-151.0,0.00032214,2]
[391833366,1760896233400,-151.0,0.00032214,2]
[391833367,1760896233410,-151.0,0.00032214,2]
[391833368,1760896233419,-151.0,0.00032214,2]
[391833369,1760896233429,-151.0,0.00032214,2]
[391833370,1760896233439,-151.0,0.00032214,2]
[391833371,1760896233447,-151.0,0.00032214,2]
[391833372,1760896233457,-151.0,0.00032214,2]
[391833373,1760896233466,-151.0,0.00032214,2]
[391833374,1760896233475,-151.0,0.00032214,2]
[391833375,1760896233484,-151.0,0.00032214,2]
[391833376,1760896233494,-151.0,0.00032214,2]
[391833377,1760896233503,-151.0,0.00032214,2]
[391833378,1760896233513,-151.0,0.00032214,2]
[391833379,1760896233522,-151.0,0.00032214,2]
[391833380,1760896233531,-151.0,0.00032214,2]
[391833381,1760896233540,-151.0,0.00032214,2]
[391833382,1760896233550,-151.0,0.00032214,2]
[391833383,1760896233559,-151.0,0.00032214,2]
[391833384,1760896233568,-151.0,0.00032214,2]
[391833385,1760896233577,-151.0,0.00032214,2]
[391833386,1760896233587,-151.0,0.00032214,2]
[391833387,1760896233597,-151.0,0.00032214,2]
[391833388,1760896233607,-151.0,0.00032214,2]
[391833389,1760896233617,-151.0,0.00032214,2]
[391833390,1760896233627,-151.0,0.00032214,2]
[391833391,1760896233636,-151.0,0.00032214,2]
[391833392,1760896233647,-151.0,0.00032214,2]
[391833393,1760896233657,-151.0,0.00032214,2]
[391833394,1760896233667,-151.0,0.00032214,2]
[391833395,1760896233676,-151.0,0.00032214,2]
[391833396,1760896233688,-9915.25,0.00032234,2]
[391833397,1760896233697,-1847.0,0.0003233,2]
[391833398,1760896233708,-500.0,0.00032368,2]
[391833399,1760896233719,-1847.0,0.0003237,2]
[391833400,1760896233729,-500.0,0.00032387,2]
[391833401,1760896233739,-5000.0,0.0003242,2]
[391833402,1760896233749,-500.0,0.00032423,2]
[391833403,1760896233760,-500.0,0.00032478,2]
[391833404,1760896233769,-189.39,0.00032509,2]
[391833405,1760896233779,-500.0,0.00032532,2]
[391833406,1760896233789,-500.0,0.00032587,2]
[391833407,1760896233799,-350.0,0.00032642,2]
[391833408,1760896233809,-159.7,0.00032704,2]
[391833409,1760896233818,-185.63,0.00032761,2]
[391833410,1760896233828,-1038.0,0.00032944,2]
[391833411,1760896233837,-2500.0,0.0003304,5]
[391833412,1760896233846,-2500.0,0.0003304,5]
[391833413,1760896233856,-1152.62,0.00033046,2]
[391833414,1760896233865,-611.9210406,0.00033139,2]
[391833415,1760896233875,-231.27,0.00033165,2]
[391833416,1760896233884,-168.0,0.00033236,2]
[391833417,1760896233894,-900.0,0.00033241,2]
[391833418,1760896233903,-262.52,0.00033821,120]
[391833419,1760896233912,-153.0,0.00033829,2]
[391833420,1760896233923,-153.0,0.00033829,2]
[391833421,1760896233933,-153.0,0.00033834,2]
[391833422,1760896233943,-153.0,0.00033834,2]
[391833423,1760896233952,-153.0,0.00033834,2]
[391833424,1760896233962,-153.0,0.00033834,2]
[391833425,1760896233971,-153.0,0.00033834,2]
[391833426,1760896233981,-153.0,0.00033834,2]
[391833427,1760896233990,-380.527,0.0003389,2]
[391833428,1760896233999,-159.793331,0.00033922,2]
[391833429,1760896234009,-460.21146903,0.00033952,2]
[391833430,1760896234019,-240.00020879,0.0003399,2]
[391833431,1760896234028,-1000.0,0.00033999,2]
[391833432,1760896234038,-1000.0,0.00034,15]
[391833433,1760896234047,-1000.0,0.00034,15]
[391833434,1760896234057,-1000.0,0.00034,13]
[391833435,1760896234066,-1000.0,0.00034,13]
[391833436,1760896234076,-1049.0,0.00034,11]
[391833437,1760896234086,-1000.0,0.00034,11]
[391833438,1760896234099,-1000.0,0.00034,11]
[391833439,1760896234109,-1000.0,0.00034,9]
[391833440,1760896234119,-1000.0,0.00034,9]
[391833441,1760896234129,-1000.0,0.00034,9]
[391833442,1760896234139,-1000.0,0.00034,9]
[391833443,1760896234148,-1000.0,0.00034,9]
[391833444,1760896234158,-893.0,0.00034,12]
[391833445,1760896234167,-1000.0,0.00034,9]
[391833446,1760896234176,-1000.0,0.00034,7]
[391833447,1760896234187,-1000.0,0.00034,7]
[391833448,1760896234196,-1001.0,0.00034,9]
[391833449,1760896234205,-1000.0,0.00034,7]
[391833450,1760896234215,-23513.69596326,0.00034,2]
[391833451,1760896234225,-10000.0,0.00034,14]
[391833452,1760896234236,-168.0,0.00034001,2]
[391833453,1760896234246,-2500.0,0.00034006,2]
[391833454,1760896234255,-1000.0,0.00034064,2]
[391833455,1760896234265,-249.38492727,0.00034092,2]
[391833456,1760896234274,-179.37776622,0.00034092,2]
[391833457,1760896234285,-5000.0,0.00034105,2]
[391833458,1760896234294,-344.25206053,0.00034105,7]
[391833459,1760896234303,-344.25206053,0.00034106,7]
[391833460,1760896234313,-160.67326616,0.00034106,6]
[391833461,1760896234324,-273.92722868,0.00034106,2]
[391833462,1760896234334,-724.30062895,0.00034106,2]
[391833463,1760896234344,-344.25206053,0.00034106,7]
[391833464,1760896234354,-48120.1689,0.00034106,3]
[391833465,1760896234364,-500.0,0.00034109,7]
[391833466,1760896234373,-236.75421982,0.00034109,7]
[391833467,1760896234382,-179.80918074,0.00034109,7]
[391833468,1760896234392,-182.30182829,0.00034109,7]
[391833469,1760896234402,-150.11164651,0.00034113,7]
[391833470,1760896234411,-500.0,0.00034164,8]
[391833471,1760896234420,-501.26726669,0.00034173,5]
[391833472,1760896234431,-217.6150345,0.00034173,5]
[391833473,1760896234441,-500.0,0.00034173,5]
[391833474,1760896234450,-21689.9998802,0.00034177,2]
[391833475,1760896234460,-3098.57141146,0.0003418,2]
[391833476,1760896234469,-9295.71423438,0.00034182,2]
[391833477,1760896234478,-3098.57141146,0.00034183,2]
[391833478,1760896234488,-6197.14282292,0.00034184,2]
[391833479,1760896234497,-3098.57141146,0.00034185,2]
[391833480,1760896234508,-21689.9998802,0.00034186,2]
[391833481,1760896234518,-500.0,0.00034187,8]
[391833482,1760896234527,-500.0,0.00034187,8]
[391833483,1760896234537,-500.0,0.00034187,8]
[391833484,1760896234547,-1119.55,0.00034187,8]
[391833485,1760896234556,-500.0,0.00034187,8]
[391833486,1760896234566,-500.0,0.00034187,7]
[391833487,1760896234576,-505.42818314,0.00034187,8]
[391833488,1760896234586,-500.0,0.00034187,8]
[391833489,1760896234596,-48625.88653521,0.00034187,2]
[391833490,1760896234609,-2200.67601767,0.00034187,2]
[391833499,1760896238194,-500.0,0.00029399,2]
[391833500,1760896238204,-419.38,0.00029399,2]
[391833501,1760896238247,-80.62,0.00029399,2]
[391833502,1760896238256,-500.0,0.00029399,2]
[391833503,1760896238266,-2243.76238829,0.00034187,2]
[391833504,1760896238353,-359.49483987,0.00034187,2]
[391833505,1760896238406,-5341.36589499,0.00034187,2]
[391833506,1760896238415,-1603.67799419,0.00034192,2]
[391833556,1760896240376,-501.52606715,0.00034192,2]
[391833560,1760896243404,-500.0,0.00029399,2]
[391833561,1760896243415,-43.26,0.00029399,2]
[391833562,1760896246592,-456.74,0.00029399,2]
[391833563,1760896246602,-500.0,0.00029399,2]
[391833564,1760896246612,-500.0,0.00029399,2]
[391833565,1760896246621,-250.0,0.00029399,2]
[391833566,1760896246631,-5000.0,0.00034105,2]
[391833567,1760896246641,-9035.79593866,0.00034192,2]
[391833568,1760896246651,-3098.57141146,0.00034193,2]
[391833569,1760896246660,-3098.57141146,0.00034194,2]
[391833570,1760896246669,-15492.8570573,0.00034195,2]
[391833571,1760896246679,-500.0,0.00034195,8]
[391833572,1760896246688,-16729.68766782,0.00034195,2]
[391833576,1760896260801,200.0,0.00034206,120]
[391833577,1760896265432,300.0,0.00018471,120]
[391833578,1760896333603,257.91778498,0.00034206,30]
[391833584,1760896561474,200.0,0.00034207,120]
[391833588,1760896748204,1755.648907,7.945e-05,2]
[391833590,1760896861128,200.0,0.00034207,120]
[391833603,1760897161106,200.0,0.00034207,120]
[391833604,1760897163246,212.89497163,0.00019502,120]
[391833611,1760897331410,-151.0,0.00017801,2]
[391833619,1760897431447,-2500.0,0.00019502,2]
[391833620,1760897431457,-2325.12520711,0.00020482,2]
[391833621,1760897431467,-616.74308424,0.00023235,2]
[391833622,1760897431477,-1315.0,0.000266,2]
[391833623,1760897431487,-342.4287,0.00028153,2]
[391833624,1760897431496,-228.19184995,0.00028253,4]
[391833625,1760897431506,-836.0,0.00030982,2]
[391833626,1760897431523,-1929.071756,0.00030983,2]
[391833627,1760897431532,-166.66,0.00031419,30]
[391833628,1760897431542,-685.11263396,0.00031528,2]
[391833629,1760897431553,-166.66,0.0003208,30]
[391833630,1760897431562,-179.0,0.00032587,2]
[391833631,1760897431571,-179.0,0.00032693,2]
[391833632,1760897431585,-179.0,0.00032711,7]
[391833633,1760897431595,-3441.42863016,0.00032714,2]
[391833634,1760897431605,-166.66,0.00032742,30]
[391833635,1760897431615,-564.52,0.0003288,2]
[391833636,1760897431625,-150.0,0.00032921,2]
[391833637,1760897431634,-150.0,0.00032958,2]
[391833638,1760897431645,-500.0,0.00032999,7]
[391833639,1760897431654,-500.0,0.00032999,7]
[391833640,1760897431664,-647.33501787,0.00032999,7]
[391833641,1760897431674,-7334.63417404,0.00033,120]
[391833642,1760897437320,-395.8408031,0.00033,120]
[391833643,1760897437428,-4043.50053931,0.00033,120]
[391833644,1760897437439,-6977.748,0.00033,120]
[391833645,1760897437483,-6231.27648355,0.00033,120]
[391833646,1760897437493,-501.9040012,0.0003315,5]
[391833647,1760897437502,-514.93085704,0.0003315,5]
[391833648,1760897437511,-500.0,0.0003315,2]
[391833649,1760897437520,-500.0,0.0003315,5]
[391833650,1760897437530,-502.28864495,0.0003315,5]
[391833651,1760897437539,-500.0,0.0003315,5]
[391833652,1760897437552,-500.0,0.0003315,5]
[391833653,1760897437565,-500.0,0.0003315,5]
[391833654,1760897437575,-792.47,0.00033151,2]
[391833655,1760897437585,-300.0,0.00033152,2]
[391833657,1760897437598,-184.33,0.00033182,2]
[391833659,1760897437609,-250.0,0.00033207,7]
[391833661,1760897437618,-1000.0,0.00033217,2]
[391833663,1760897437628,-1500.0,0.00033229,120]
[391833665,1760897437638,-179.0,0.00033279,7]
[391833667,1760897437647,-237.0,0.00033348,2]
[391833669,1760897437657,-166.66,0.00033403,30]
[391833671,1760897437666,-179.0,0.00033578,2]
[391833673,1760897437675,-9946.75002962,0.00033589,2]
[391833675,1760897437684,-200.0,0.000336,12]
[391833677,1760897437693,-179.0,0.00033637,2]
[391833679,1760897437703,-504.56840367,0.00033698,5]
[391833680,1760897437712,-500.0,0.00033698,5]
[391833681,1760897437721,-500.0,0.00033698,5]
[391833682,1760897437730,-500.0,0.000337,12]
[391833683,1760897437739,-6439.0,0.00033706,2]
[391833684,1760897437747,-6448.0,0.00033706,2]
[391833685,1760897437756,-2590.0,0.00033706,2]
[391833686,1760897437765,-557.0,0.00033706,2]
[391833687,1760897437774,-700.0,0.000338,12]
[391833688,1760897437783,-6534.9,0.00033844,2]
[391833689,1760897437792,-499.99,0.00033844,2]
[391833690,1760897437802,-166.66,0.00033867,2]
[391833691,1760897437811,-1000.0,0.000339,12]
[391833693,1760897437821,-237.0,0.00033976,2]
[391833695,1760897437830,-1449.489,0.00033999,37]
[391833697,1760897437840,-1929.071756,0.00034059,2]
[391833699,1760897437850,-166.66,0.00034065,30]
[391833701,1760897437859,-151.0,0.00034074,2]
[391833702,1760897437868,-151.0,0.00034074,2]
[391833705,1760897437878,-151.0,0.00034074,2]
[391833706,1760897437888,-151.0,0.00034074,2]
[391833708,1760897437898,-151.0,0.00034074,2]
[391833710,1760897437907,-151.0,0.00034074,2]
[391833712,1760897437917,-151.0,0.00034074,2]
[391833714,1760897437926,-151.0,0.00034074,2]
[391833716,1760897437936,-151.0,0.00034074,2]
[391833718,1760897437945,-151.0,0.00034074,2]
[391833720,1760897437954,-151.0,0.00034074,2]
[391833722,1760897437963,-151.0,0.00034074,2]
[391833724,1760897437972,-151.0,0.00034074,2]
[391833726,1760897437982,-151.0,0.00034074,2]
[391833728,1760897437991,-151.0,0.00034074,2]
[391833729,1760897438001,-151.0,0.00034074,2]
[391833731,1760897438010,-151.0,0.00034074,2]
[391833733,1760897438020,-125.20468405,0.00034094,2]
[391833736,1760897438032,-8968.19515025,0.00034094,2]
[391833738,1760897438041,-1000.0,0.00034096,2]
[391833740,1760897438051,-2500.0,0.00034096,2]
[391833741,1760897438063,-6782.11819288,0.000341,2]
[391833744,1760897438075,-394.14575585,0.000341,2]
[391833746,1760897438086,-317.98127747,0.000341,2]
[391833761,1760897439428,-1504.93841558,0.000341,2]
[391833762,1760897439438,-18.90820082,0.000341,2]
[391833763,1760897439730,-137.0269885,0.000341,2]
[391833764,1760897439740,-179.3777662,0.00034104,2]
[391833765,1760897439750,-1385.70869682,0.00034106,6]
[391833766,1760897439759,-161.04823725,0.00034106,15]
[391833767,1760897439769,-293.79976398,0.00034106,2]
[391833768,1760897439780,-36.97794454,0.00034106,2]
[391833769,1760897439792,-526.81249959,0.00034106,2]
[391833774,1760897442479,-4436.20955587,0.00034106,2]
[391833775,1760897442488,-182.61815246,0.00034107,2]
[391833776,1760897442498,-620.82911052,0.00034107,2]
[391833777,1760897442507,-910.7383,0.00034107,3]
[391833778,1760897442517,-150.0,0.0003415,2]
[391833779,1760897442526,-150.0,0.0003415,2]
[391833780,1760897442536,-203.89445552,0.0003415,2]
[391833781,1760897442545,-150.0,0.0003415,2]
[391833782,1760897442557,-200.0,0.0003415,2]
[391833783,1760897442570,-200.0,0.0003415,2]
[391833784,1760897442581,-1199.86,0.00034156,30]
[391833785,1760897442590,-502.12182385,0.00034173,5]
[391833786,1760897442600,-500.0,0.00034173,2]
[391833787,1760897442611,-500.0,0.00034173,5]
[391833788,1760897442620,-200.0,0.00034186,7]
[391833789,1760897442630,-200.0,0.00034186,7]
[391833790,1760897442639,-500.0,0.00034187,8]
[391833791,1760897442649,-500.0,0.00034187,8]
[391833792,1760897442658,-500.0,0.00034187,8]
[391833793,1760897442667,-1929.071756,0.00034187,30]
[391833794,1760897442676,-501.77094174,0.00034187,8]
[391833795,1760897442685,-501.27927005,0.00034187,8]
[391833796,1760897442694,-501.49325489,0.00034187,8]
[391833797,1760897442704,-500.0,0.00034187,2]
[391833798,1760897442713,-500.0,0.00034187,2]
[391833799,1760897442722,-500.0,0.00034187,8]
[391833800,1760897442732,-500.0,0.00034187,8]
[391833801,1760897442742,-500.0,0.00034187,7]
[391833803,1760897442751,-500.0,0.00034187,2]
[391833804,1760897442760,-500.0,0.00034187,8]
[391833805,1760897442769,-500.0,0.00034187,8]
[391833806,1760897442779,-500.0,0.00034187,8]
[391833807,1760897442789,-500.0,0.00034187,8]
[391833808,1760897442799,-1015.39,0.00034192,120]
[391833809,1760897442808,-150.0,0.00034195,2]
[391833810,1760897442817,-498.9444385,0.00034195,2]
[391833811,1760897442828,-150.0,0.00034195,2]
[391833812,1760897442837,-3620.81530483,0.00034195,2]
[391833813,1760897442847,-530.89594702,0.00034195,2]
[391833814,1760897442856,-500.0,0.00034195,8]
[391833815,1760897442865,-500.0,0.00034195,7]
[391833816,1760897442875,-500.0,0.00034195,8]
[391833817,1760897442884,-500.0,0.00034195,8]
[391833818,1760897442894,-500.0,0.00034195,8]
[391833819,1760897442903,-500.0,0.00034195,8]
[391833820,1760897442913,-500.0,0.00034195,8]
[391833821,1760897442924,-500.0,0.00034195,8]
[391833822,1760897442933,-500.0,0.00034195,8]
[391833823,1760897442943,-500.0,0.00034195,8]
[391833824,1760897442960,-500.0,0.00034195,8]
[391833825,1760897442976,-157.5418,0.00034195,2]
[391833826,1760897442987,-157.54181,0.00034195,2]
[391833827,1760897442996,-157.54181,0.00034195,2]
[391833828,1760897443006,-157.54181,0.00034195,2]
[391833829,1760897443016,-157.54181,0.00034195,2]
[391833830,1760897443029,-157.54181,0.00034195,2]
[391833831,1760897443042,-500.0,0.00034195,8]
[391833832,1760897443052,-500.0,0.00034195,8]
[391833833,1760897443061,-500.0,0.00034195,8]
[391833834,1760897443071,-605.94,0.00034195,8]
[391833835,1760897443081,-500.0,0.00034195,8]
[391833836,1760897443090,-35265.06225305,0.00034196,2]
[391833837,1760897443100,-236.79727687,0.00034197,2]
[391833838,1760897443109,-754.17,0.000342,14]
[391833839,1760897443119,-929.22914,0.000342,14]
[391833840,1760897443129,-496.85391816,0.00034202,8]
[391833841,1760897443138,-500.0,0.00034202,8]
[391833842,1760897443148,-165.72795387,0.00034202,7]
[391833843,1760897443158,-477.6112798,0.00034202,7]
[391833844,1760897443167,-500.0,0.00034202,8]
[391833845,1760897443176,-500.0,0.00034202,8]
[391833846,1760897443186,-500.0,0.00034202,8]
[391833847,1760897443196,-500.0,0.00034202,8]
[391833848,1760897443205,-500.0,0.00034202,8]
[391833849,1760897443214,-719.45,0.00034202,8]
[391833850,1760897443224,-500.0,0.00034202,8]
[391833851,1760897443234,-500.0,0.00034202,8]
[391833852,1760897443244,-500.0,0.00034202,8]
[391833853,1760897443253,-500.0,0.00034202,8]
[391833854,1760897443262,-500.0,0.00034202,8]
[391833855,1760897443272,-500.0,0.00034202,8]
[391833856,1760897443281,-500.0,0.00034202,8]
[391833857,1760897443291,-500.0,0.00034202,8]
[391833858,1760897443520,-500.0,0.00034202,8]
[391833859,1760897443532,-500.0,0.00034202,8]
[391833860,1760897443542,-500.0,0.00034202,8]
[391833861,1760897443553,-500.0,0.00034202,8]
[391833862,1760897443565,-581.88044926,0.00034202,8]
[391833863,1760897443575,-497.31451399,0.00034202,8]
[391833864,1760897443584,-500.0,0.00034202,8]
[391833865,1760897443594,-500.0,0.00034202,8]
[391833866,1760897443603,-417.68762521,0.00034202,8]
[391833867,1760897443613,-500.0,0.00034202,8]
[391833868,1760897443623,-1072.9,0.00034202,8]
[391833869,1760897443632,-500.0,0.00034202,8]
[391833870,1760897443642,-500.0,0.00034202,8]
[391833871,1760897443652,-500.0,0.00034202,8]
[391833872,1760897443661,-500.0,0.00034203,8]
[391833873,1760897443671,-514.70201436,0.00034203,8]
[391833874,1760897443680,-500.0,0.00034203,8]
[391833875,1760897443690,-500.0,0.00034203,8]
[391833876,1760897443700,-500.0,0.00034203,8]
[391833877,1760897443709,-500.0,0.00034203,7]
[391833878,1760897443719,-500.0,0.00034203,2]
[391833879,1760897443728,-536.24768554,0.00034203,8]
[391833880,1760897443738,-500.0,0.00034203,8]
[391833881,1760897443747,-500.0,0.00034203,8]
[391833882,1760897443756,-500.0,0.00034203,8]
[391833883,1760897443766,-500.0,0.00034203,8]
[391833884,1760897443775,-500.0,0.00034203,8]
[391833885,1760897443785,-500.0,0.00034203,8]
[391833886,1760897443795,-500.0,0.00034203,8]
[391833887,1760897443806,-503.86188543,0.00034203,8]
[391833888,1760897443815,-500.0,0.00034203,8]
[391833889,1760897443824,-500.0,0.00034203,8]
[391833890,1760897443834,-500.0,0.00034203,8]
[391833891,1760897443844,-503.55392355,0.00034203,8]
[391833892,1760897443854,-500.0,0.00034203,8]
[391833893,1760897443865,-502.39533752,0.00034203,8]
[391833894,1760897443875,-500.0,0.00034203,8]
[391833895,1760897443885,-500.0,0.00034203,8]
[391833896,1760897443894,-500.0,0.00034203,8]
[391833897,1760897443904,-500.0,0.00034203,8]
[391833898,1760897443914,-500.0,0.00034203,8]
[391833899,1760897443923,-500.81658199,0.00034203,8]
[391833900,1760897443932,-500.0,0.00034203,8]
[391833901,1760897443941,-505.5554572,0.00034203,8]
[391833902,1760897443952,-500.0,0.00034203,8]
[391833903,1760897443962,-500.0,0.00034203,8]
[391833904,1760897443971,-500.0,0.00034203,8]
[391833905,1760897443980,-500.0,0.00034203,8]
[391833906,1760897443990,-500.0,0.00034203,8]
[391833907,1760897444001,-500.0,0.00034203,8]
[391833908,1760897444011,-500.0,0.00034203,8]
[391833909,1760897444020,-642.55513035,0.00034203,8]
[391833910,1760897444030,-500.0,0.00034203,8]
[391833911,1760897444040,-501.10601382,0.00034203,8]
[391833912,1760897444051,-5223.99,0.00034203,2]